fUST/lending_fUST_20250722
["ID","MTS","AMOUNT","RATE_DAILY","PERIOD"]
[374024243,1753186244040,-460.0,0.00021686,2]
[374024244,1753186244050,-571.61,0.00021686,2]
[374024245,1753186244059,-460.0,0.00021687,2]
[374024246,1753186244068,-460.0,0.00021687,2]
[374024247,1753186244078,-632.5,0.00021687,2]
[374024248,1753186244088,-558.06,0.00021688,2]
[374024249,1753186244098,-1273.55278868,0.00021797,6]
[374024250,1753186244107,-500.0,0.00021809,2]
[374024251,1753186244117,-292.58580708,0.00021809,2]
[374024252,1753186244126,-695.01876437,0.00021943,2]
[374024253,1753186244136,-460.0,0.0002196,2]
[374024254,1753186244145,-460.0,0.0002196,2]
[374024255,1753186244154,-571.61,0.0002196,2]
[374024256,1753186244164,-460.0,0.00021961,2]
[374024257,1753186244173,-460.0,0.00021961,2]
[374024258,1753186244183,-632.5,0.00021961,2]
[374024259,1753186244193,-558.06,0.00021962,2]
[374024260,1753186244202,-543.65,0.00022,7]
[374024261,1753186244212,-1340.74,0.00022,7]
[374024262,1753186244224,-1000.0,0.00022,4]
[374024263,1753186244234,-1273.55278868,0.00022038,6]
[374024264,1753186244244,-530.55,0.00022234,2]
[374024265,1753186244255,-411.95713749,0.00022234,2]
[374024266,1753186244265,-571.61,0.00022234,2]
[374024267,1753186244274,-460.0,0.00022235,2]
[374024268,1753186244283,-460.0,0.00022235,2]
[374024269,1753186244293,-632.5,0.00022235,2]
[374024270,1753186244303,-558.06,0.00022236,2]
[374024271,1753186244313,-1273.55278868,0.00022279,6]
[374024272,1753186244323,-4742.14,0.000223,7]
[374024273,1753186244332,-1000.0,0.00022357,2]
[374024274,1753186244342,-2212.76,0.00022465,2]
[374024275,1753186244351,-571.61,0.00022508,2]
[374024276,1753186244361,-460.0,0.00022509,2]
[374024277,1753186244372,-460.0,0.00022509,2]
[374024278,1753186244382,-632.5,0.00022509,2]
[374024279,1753186244393,-558.06,0.0002251,2]
[374024280,1753186244403,-1273.55278868,0.00022521,7]
[374024281,1753186244414,-1421.01089699,0.00022558,2]
[374024282,1753186244425,-1273.55278868,0.00022762,7]
[374024283,1753186244435,-158.159765,0.00022768,2]
[374024284,1753186244445,-571.61,0.00022782,2]
[374024285,1753186244455,-324.22467185,0.00022783,2]
[374024286,1753186244466,-460.0,0.00022783,2]
[374024287,1753186244478,-632.5,0.00022783,2]
[374024288,1753186244488,-558.06,0.00022784,2]
[374024289,1753186244498,-231.28369723,0.00022942,2]
[374024290,1753186244508,-695.01876437,0.00022995,2]
[374024291,1753186244519,-1110.02,0.00023,2]
[374024292,1753186244530,-1000.0,0.00023,4]
[374024293,1753186244540,-160.0,0.00023,2]
[374024294,1753186244550,-1273.55278868,0.00023003,8]
[374024295,1753186244560,-3014.63523143,0.00023036,2]
[374024296,1753186244570,-571.61,0.00023056,2]
[374024297,1753186244580,-460.0,0.00023057,2]
[374024298,1753186244614,-632.5,0.00023057,2]
[374024299,1753186244624,-558.06,0.00023058,2]
[374024300,1753186244635,-1273.55278868,0.00023245,8]
[374024301,1753186244644,-571.61,0.0002333,2]
[374024302,1753186244654,-413.2599,0.00023331,2]
[374024303,1753186244664,-632.5,0.00023331,2]
[374024304,1753186244673,-558.12,0.00023332,2]
[374024305,1753186244683,-1340.74,0.000234,7]
[374024306,1753186244694,-214.6393183,0.000234,7]
[374024307,1753186244704,-1273.55278868,0.00023486,9]
[374024308,1753186244713,-543.65,0.000235,7]
[374024309,1753186244724,-571.61,0.00023604,2]
[374024310,1753186244734,-632.5,0.00023605,2]
[374024311,1753186244744,-1273.55278868,0.00023728,9]
[374024312,1753186244754,-177.276587,0.00023744,2]
[374024313,1753186244764,-571.61,0.00023878,2]
[374024314,1753186244774,-632.6,0.00023879,2]
[374024315,1753186244784,-1273.55278868,0.00023969,10]
[374024316,1753186244793,-1000.0,0.00024,4]
[374024317,1753186244803,-160.0,0.00024,7]
[374024318,1753186244813,-695.01876437,0.00024048,2]
[374024319,1753186244822,-150.0,0.00024097,2]
[374024320,1753186244832,-150.0,0.00024097,2]
[374024321,1753186244842,-244.07,0.00024097,2]
[374024322,1753186244852,-2157.0,0.00024097,2]
[374024323,1753186244861,-4742.14,0.000241,7]
[374024324,1753186244872,-571.79,0.00024152,2]
[374024325,1753186244882,-1273.55278868,0.0002421,10]
[374024326,1753186244891,-158.0,0.00024301,12]
[374024327,1753186244900,-239.84119403,0.00024311,2]
[374024328,1753186244910,-1273.55278868,0.00024452,11]
[374024329,1753186244921,-158.159765,0.0002447,7]
[374024330,1753186244930,-158.159765,0.000245,30]
[374024331,1753186244940,-1273.55278868,0.00024693,11]
[374024332,1753186244951,-501.40390994,0.00024773,2]
[374024333,1753186244960,-163.565892,0.00024773,8]
[374024334,1753186244970,-179332.4949957,0.000248,14]
[374024335,1753186244980,-2000.0,0.000248,2]
[374024336,1753186244989,-278605.6310197,0.000249,2]
[374024337,1753186245158,-460.0,0.00017028,2]
[374024338,1753186245168,-460.0,0.00017302,2]
[374024339,1753186245178,-460.0,0.00017576,2]
[374024340,1753186245188,-460.0,0.0001785,2]
[374024341,1753186245198,-460.0,0.00018124,2]
[374024342,1753186245209,-460.0,0.00018398,2]
[374024343,1753186245226,-460.0,0.00018399,2]
[374024344,1753186245235,-353.98,0.00018672,2]
[374024345,1753186245245,-460.0,0.00018673,2]
[374024346,1753186245254,-487.71,0.00018947,2]
[374024347,1753186245265,-460.0,0.00019768,2]
[374024348,1753186245274,-460.0,0.00020042,2]
[374024349,1753186245283,-6347.31,0.000249,2]
[374024360,1753186246660,-460.0,0.00017577,2]
[374024361,1753186246670,-2173.59304815,0.000249,2]
[374024362,1753186246740,-23459.06351084,0.000249,2]
[374024371,1753186247502,-460.0,0.00017028,2]
[374024373,1753186247512,-460.0,0.00017851,2]
[374024375,1753186247523,-518.64857751,0.000249,2]
[374024408,1753186247819,-1641.452989,0.000249,2]
[374024413,1753186247859,-68687.7714108,0.000249,2]
[374024415,1753186247869,-1273.55278868,0.00024934,12]
[374024417,1753186247879,-1000.0,0.00025,4]
[374024419,1753186247888,-159.0,0.00025,7]
[374024421,1753186247898,-168.0,0.0002501,2]
[374024423,1753186247908,-1340.74,0.000251,7]
[374024425,1753186247918,-695.01876437,0.000251,2]
[374024427,1753186247928,-1273.55278868,0.00025176,12]
[374024429,1753186247938,-200.0,0.0002518,13]
[374024431,1753186247947,-3014.63523143,0.00025182,2]
[374024434,1753186247957,-341.51194515,0.000252,3]
[374024436,1753186247966,-12619.94447631,0.000252,3]
[374024438,1753186247977,-160.0,0.000252,3]
[374024440,1753186247987,-160.0,0.000252,3]
[374024442,1753186247997,-2212.76,0.00025205,4]
[374024444,1753186248010,-247.68461556,0.00025206,2]
[374024446,1753186248020,-276.01602829,0.00025206,2]
[374024448,1753186248030,-454.0,0.00025206,2]
[374024450,1753186248040,-151.0,0.00025206,2]
[374024452,1753186248051,-500.0,0.00025206,2]
[374024454,1753186248060,-441.0,0.00025206,2]
[374024456,1753186248071,-153.94878946,0.00025206,2]
[374024458,1753186248082,-500.0,0.00025206,2]
[374024460,1753186248092,-151.0,0.00025206,2]
[374024462,1753186248103,-151.0,0.00025206,2]
[374024464,1753186248113,-151.0,0.00025273,7]
[374024466,1753186248123,-151.0,0.00025273,7]
[374024468,1753186248132,-151.0,0.00025273,7]
[374024470,1753186248143,-151.0,0.00025273,7]
[374024473,1753186248153,-151.0,0.00025273,7]
[374024476,1753186248163,-198.133311,0.00025273,7]
[374024478,1753186248173,-151.0,0.00025273,7]
[374024480,1753186248182,-151.0,0.00025273,7]
[374024482,1753186248192,-151.0,0.00025273,7]
[374024485,1753186248202,-151.0,0.00025273,7]
[374024487,1753186248211,-151.0,0.00025273,7]
[374024488,1753186248222,-250.720686,0.00025273,7]
[374024491,1753186248232,-151.0,0.00025273,7]
[374024493,1753186248243,-151.0,0.00025273,7]
[374024495,1753186248253,-151.0,0.00025273,7]
[374024497,1753186248263,-152.990069,0.00025273,7]
[374024499,1753186248273,-151.0,0.00025273,7]
[374024501,1753186248283,-151.0,0.00025273,7]
[374024503,1753186248293,-151.0,0.00025273,7]
[374024505,1753186248304,-151.0,0.00025273,7]
[374024506,1753186248314,-151.0,0.00025273,7]
[374024508,1753186248325,-151.0,0.00025273,7]
[374024511,1753186248338,-151.0,0.00025273,7]
[374024513,1753186248349,-151.0,0.00025273,7]
[374024515,1753186248359,-151.0,0.00025273,7]
[374024517,1753186248369,-151.0,0.00025273,7]
[374024519,1753186248382,-151.0,0.00025273,7]
[374024521,1753186248401,-182.204345,0.00025273,7]
[374024523,1753186248411,-151.0,0.00025273,7]
[374024525,1753186248421,-151.0,0.00025273,7]
[374024527,1753186248431,-151.0,0.00025273,7]
[374024529,1753186248441,-151.0,0.00025273,7]
[374024531,1753186248451,-224.488182,0.00025273,7]
[374024534,1753186248461,-151.0,0.00025273,7]
[374024536,1753186248471,-151.0,0.00025273,7]
[374024538,1753186248482,-296.592476,0.00025273,7]
[374024540,1753186248492,-151.0,0.00025273,7]
[374024542,1753186248503,-239.836,0.00025275,7]
[374024544,1753186248514,-151.0,0.00025275,7]
[374024546,1753186248524,-151.0,0.00025275,7]
[374024548,1753186248534,-151.0,0.00025275,7]
[374024550,1753186248543,-151.0,0.00025275,7]
[374024552,1753186248555,-151.0,0.00025275,7]
[374024554,1753186248565,-151.0,0.00025275,7]
[374024556,1753186248575,-151.0,0.00025275,7]
[374024558,1753186248585,-151.0,0.00025275,7]
[374024560,1753186248595,-195.06976,0.00025275,7]
[374024562,1753186248605,-181.162718,0.00025275,7]
[374024564,1753186248616,-181.162718,0.00025275,7]
[374024566,1753186248626,-181.162718,0.00025275,7]
[374024569,1753186248636,-181.162718,0.00025275,7]
[374024571,1753186248646,-181.162718,0.00025275,7]
[374024573,1753186248656,-181.162718,0.00025275,7]
[374024575,1753186248666,-181.162718,0.00025275,7]
[374024577,1753186248677,-181.162718,0.00025275,7]
[374024578,1753186248691,-181.162718,0.00025275,7]
[374024580,1753186248701,-181.162718,0.00025275,7]
[374024583,1753186248711,-181.162718,0.00025275,7]
[374024585,1753186248722,-181.162718,0.00025275,7]
[374024587,1753186248732,-181.162718,0.00025275,7]
[374024589,1753186248743,-181.162718,0.00025275,7]
[374024591,1753186248765,-181.162718,0.00025275,7]
[374024593,1753186248784,-181.162718,0.00025275,7]
[374024595,1753186248794,-181.162718,0.00025275,7]
[374024597,1753186248805,-181.162718,0.00025275,7]
[374024599,1753186248816,-181.162718,0.00025275,7]
[374024601,1753186248828,-181.162715,0.00025275,7]
[374024603,1753186248839,-151.0,0.00025275,7]
[374024605,1753186248849,-151.0,0.00025275,7]
[374024607,1753186248859,-299.587763,0.00025275,7]
[374024609,1753186248869,-151.0,0.00025276,7]
[374024611,1753186248879,-151.0,0.00025276,7]
[374024613,1753186248888,-2204.37520977,0.00025279,2]
[374024616,1753186248898,-151.0,0.0002528,7]
[374024618,1753186248908,-151.0,0.0002528,7]
[374024620,1753186248918,-151.0,0.0002528,7]
[374024622,1753186248928,-151.0,0.0002528,7]
[374024624,1753186248938,-151.0,0.0002528,7]
[374024626,1753186248948,-226.993,0.0002528,7]
[374024628,1753186248958,-151.0,0.0002528,7]
[374024630,1753186248968,-151.0,0.0002528,7]
[374024632,1753186248978,-151.0,0.0002528,7]
[374024634,1753186248988,-151.0,0.0002528,7]
[374024636,1753186248998,-151.0,0.0002528,7]
[374024638,1753186249010,-151.0,0.0002528,7]
[374024640,1753186249019,-151.0,0.0002528,7]
[374024642,1753186249029,-151.0,0.0002528,7]
[374024644,1753186249039,-151.0,0.0002528,7]
[374024646,1753186249048,-151.0,0.0002528,7]
[374024648,1753186249058,-198.0,0.0002528,20]
[374024650,1753186249068,-151.0,0.0002528,20]
[374024652,1753186249078,-1753.0,0.0002528,3]
[374024654,1753186249087,-4853.0,0.0002528,7]
[374024656,1753186249097,-151.0,0.00025282,7]
[374024658,1753186249107,-151.0,0.00025282,7]
[374024660,1753186249117,-151.0,0.00025282,7]
[374024662,1753186249127,-151.0,0.00025282,7]
[374024664,1753186249137,-223.447684,0.00025282,7]
[374024666,1753186249146,-151.0,0.00025282,7]
[374024668,1753186249155,-151.0,0.00025282,7]
[374024670,1753186249164,-151.0,0.00025282,7]
[374024672,1753186249175,-151.0,0.00025282,7]
[374024674,1753186249185,-151.0,0.00025282,7]
[374024676,1753186249195,-151.0,0.00025282,7]
[374024678,1753186249205,-737.53576982,0.00025283,2]
[374024681,1753186249216,-175099.07720603,0.00025283,20]
[374024683,1753186249228,-300.0,0.00025283,2]
[374024685,1753186249239,-922627.01098243,0.00025283,20]
[374024687,1753186249249,-464166.99035046,0.00025283,20]
[374024689,1753186249258,-877145.3791256,0.00025283,20]
[374024691,1753186249268,-34343.36759026,0.00025283,20]
[374026681,1753186616500,4468.6160233,0.00016157,2]
[374026682,1753186638751,-239.49954007,0.00017026,2]
[374026683,1753186644664,239.4846879,0.000176,6]
[374026684,1753186686204,-300.0,0.00017026,2]
[374026685,1753186686226,-460.0,0.00017027,2]
[374026686,1753186686247,-467.22033127,0.00017027,2]
[374026687,1753186686268,-460.0,0.00017027,2]
[374026688,1753186686289,-463.08840882,0.00017027,2]
[374026689,1753186686311,-460.0,0.00017027,2]
[374026690,1753186686332,-461.38943603,0.00017027,2]
[374026691,1753186686354,-464.49733986,0.00017027,2]
[374026692,1753186686376,-460.0,0.00017027,2]
[374026693,1753186686402,-460.0,0.00017027,2]
[374026694,1753186686423,-460.0,0.00017027,2]
[374026695,1753186686447,-460.0,0.00017027,2]
[374026696,1753186686470,-460.0,0.00017027,2]
[374026697,1753186686492,-460.0,0.00017027,2]
[374026698,1753186686514,-460.0,0.00017027,2]
[374026699,1753186686537,-460.0,0.00017027,2]
[374026700,1753186686562,-460.0,0.00017027,2]
[374026701,1753186686585,-460.0,0.00017027,2]
[374026702,1753186686606,-1863.80448402,0.00017027,2]
[374026705,1753187186771,161.629344,0.00013699,2]
[374026710,1753187249100,-1009.58073189,0.00017023,2]
[374026716,1753187316753,15579.24641664,0.0002,120]
[374026796,1753187437579,-1333.51,0.00017016,3]
[374026797,1753187437589,-666.76,0.00017016,3]
[374026798,1753187437599,-333.38,0.00017016,3]
[374026799,1753187437608,-166.69,0.00017016,3]
[374026800,1753187437617,-500.07,0.00017017,3]
[374026801,1753187437626,-300.0,0.00017022,2]
[374026802,1753187437638,-190.41926811,0.00017023,2]
[374026803,1753187437647,-300.0,0.00017023,2]
[374026804,1753187437657,-300.0,0.00017023,2]
[374026805,1753187437666,-1200.0,0.00017023,2]
[374026806,1753187437676,-300.0,0.00017023,2]
[374026807,1753187437686,-300.0,0.00017023,2]
[374026808,1753187437695,-4025.59813093,0.00017023,2]
[374026816,1753187438674,-45974.40186907,0.00017023,2]
[374026817,1753187438687,-460.0,0.00017024,2]
[374026818,1753187438697,-460.0,0.00017024,2]
[374026819,1753187438708,-460.0,0.00017024,2]
[374026820,1753187438719,-460.0,0.00017024,2]
[374026821,1753187438730,-460.0,0.00017024,2]
[374026822,1753187438740,-460.0,0.00017024,2]
[374026823,1753187438750,-460.0,0.00017024,2]
[374026824,1753187438760,-460.0,0.00017024,2]
[374026825,1753187438769,-460.57093295,0.00017024,2]
[374026826,1753187438779,-462.01426599,0.00017024,2]
[374026827,1753187438790,-460.0,0.00017024,2]
[374026828,1753187438800,-462.68571048,0.00017024,2]
[374026829,1753187438810,-167.74789855,0.00017024,2]
[374026830,1753187438820,-463.46793694,0.00017024,2]
[374026831,1753187438830,-460.0,0.00017024,2]
[374026832,1753187438839,-384.84448621,0.00017025,2]
[374026833,1753187438850,-460.0,0.00017025,2]
[374026834,1753187438859,-460.0,0.00017025,2]
[374026835,1753187438869,-460.0,0.00017025,2]
[374026836,1753187438879,-460.0,0.00017025,2]
[374026837,1753187438888,-460.0,0.00017025,2]
[374026838,1753187438898,-399.75316439,0.00017025,2]
[374026839,1753187438907,-460.0,0.00017025,2]
[374026840,1753187438917,-460.0,0.00017025,2]
[374026841,1753187438927,-460.0,0.00017025,2]
[374026842,1753187438937,-460.0,0.00017025,2]
[374026843,1753187438947,-460.0,0.00017025,2]
[374026844,1753187438957,-461.21448132,0.00017025,2]
[374026845,1753187438967,-460.0,0.00017025,2]
[374026846,1753187438976,-395.43814678,0.00017025,2]
[374026847,1753187438987,-470.0653688,0.00017025,2]
[374026848,1753187438996,-460.0,0.00017025,2]
[374026849,1753187439006,-460.0,0.00017025,2]
[374026850,1753187439015,-460.0,0.00017025,2]
[374026851,1753187439025,-465.09400557,0.00017025,2]
[374026852,1753187439035,-460.0,0.00017025,2]
[374026853,1753187439046,-462.77754344,0.00017025,2]
[374026854,1753187439056,-461.7469938,0.00017025,2]
[374026855,1753187439066,-460.0,0.00017025,2]
[374026856,1753187439076,-368.44174212,0.00017025,2]
[374026857,1753187439086,-494.21,0.00017025,2]
[374026858,1753187439096,-460.0,0.00017025,2]
[374026859,1753187439105,-460.0,0.00017025,2]
[374026860,1753187439115,-460.0,0.00017025,2]
[374026861,1753187439124,-460.0,0.00017025,2]
[374026862,1753187439134,-461.37575409,0.00017025,2]
[374026863,1753187439144,-460.0,0.00017025,2]
[374026864,1753187439153,-533.63,0.00017025,2]
[374026865,1753187439162,-460.0,0.00017025,2]
[374026866,1753187439172,-460.0,0.00017025,2]
[374026867,1753187439181,-460.0,0.00017025,2]
[374026868,1753187439191,-460.0,0.00017025,2]
[374026869,1753187439201,-460.0,0.00017025,2]
[374026870,1753187439211,-460.0,0.00017025,2]
[374026871,1753187439222,-186.56764808,0.00017025,2]
[374026872,1753187439231,-460.0,0.00017025,2]
[374026873,1753187439241,-1368.29,0.00017025,2]
[374026874,1753187439251,-460.0,0.00017025,2]
[374026875,1753187439260,-460.0,0.00017025,2]
[374026876,1753187439271,-460.0,0.00017025,2]
[374026877,1753187439285,-460.0,0.00017025,2]
[374026878,1753187439296,-460.0,0.00017025,2]
[374026879,1753187439305,-460.0,0.00017025,2]
[374026880,1753187439314,-460.0,0.00017025,2]
[374026881,1753187439324,-460.0,0.00017025,2]
[374026882,1753187439333,-460.0,0.00017025,2]
[374026883,1753187439342,-460.0,0.00017025,2]
[374026884,1753187439352,-460.0,0.00017025,2]
[374026885,1753187439362,-460.0,0.00017025,2]
[374026886,1753187439371,-461.09644263,0.00017025,2]
[374026887,1753187439381,-460.0,0.00017025,2]
[374026888,1753187439390,-460.8137422,0.00017025,2]
[374026889,1753187439400,-460.0,0.00017025,2]
[374026890,1753187439409,-460.0,0.00017025,2]
[374026891,1753187439419,-460.0,0.00017025,2]
[374026892,1753187439429,-460.0,0.00017025,2]
[374026893,1753187439438,-460.0,0.00017025,2]
[374026894,1753187439448,-460.0,0.00017025,2]
[374026895,1753187439458,-460.0,0.00017025,2]
[374026896,1753187439467,-460.0,0.00017025,2]
[374026897,1753187439477,-460.0,0.00017025,2]
[374026898,1753187439486,-460.0,0.00017025,2]
[374026899,1753187439496,-592.97,0.00017025,2]
[374026900,1753187439506,-460.0,0.00017025,2]
[374026901,1753187439516,-460.0,0.00017025,2]
[374026902,1753187439525,-462.8,0.00017025,2]
[374026903,1753187439535,-460.0,0.00017025,2]
[374026904,1753187439545,-511.68,0.00017025,2]
[374026905,1753187439555,-460.0,0.00017025,2]
[374026906,1753187439564,-500.0,0.00017025,2]
[374026907,1753187439575,-500.0,0.00017025,2]
[374026908,1753187439585,-512.34684274,0.00017025,2]
[374026909,1753187439596,-500.0,0.00017025,2]
[374026910,1753187439607,-500.0,0.00017025,2]
[374026911,1753187439617,-500.0,0.00017025,2]
[374026912,1753187439626,-500.0,0.00017025,2]
[374026913,1753187439637,-500.0,0.00017025,2]
[374026914,1753187439648,-500.0,0.00017025,2]
[374026915,1753187439657,-500.0,0.00017025,2]
[374026916,1753187439667,-373.00305966,0.00017025,2]
[374026917,1753187439677,-500.0,0.00017025,2]
[374026918,1753187439687,-500.0,0.00017025,2]
[374026919,1753187439697,-500.0,0.00017025,2]
[374026920,1753187439707,-300.58214699,0.00017025,2]
[374026921,1753187439719,-226.70104622,0.00017025,2]
[374026922,1753187439730,-500.0,0.00017025,2]
[374026923,1753187439739,-500.0,0.00017025,2]
[374026924,1753187439751,-500.0,0.00017025,2]
[374026925,1753187439761,-500.0,0.00017025,2]
[374026926,1753187439770,-500.0,0.00017025,2]
[374026927,1753187439779,-500.0,0.00017025,2]
[374026928,1753187439791,-500.0,0.00017025,2]
[374026929,1753187439801,-500.0,0.00017025,2]
[374026930,1753187439810,-650.0,0.00017025,2]
[374026931,1753187439821,-500.0,0.00017025,2]
[374026932,1753187439832,-500.0,0.00017025,2]
[374026933,1753187439842,-500.0,0.00017025,2]
[374026934,1753187439851,-500.0,0.00017025,2]
[374026935,1753187439861,-500.0,0.00017025,2]
[374026936,1753187439872,-290.23933858,0.00017025,2]
[374026937,1753187439882,-500.0,0.00017025,2]
[374026938,1753187439893,-500.0,0.00017025,2]
[374026939,1753187439902,-500.0,0.00017025,2]
[374026940,1753187439912,-229.8950136,0.00017025,2]
[374026941,1753187439922,-500.0,0.00017025,2]
[374026942,1753187439933,-586.94508179,0.00017025,2]
[374026943,1753187439942,-500.0,0.00017025,2]
[374026944,1753187439952,-500.0,0.00017025,2]
[374026945,1753187439962,-574.09510972,0.00017026,2]
[374026946,1753187439971,-460.0,0.00017026,2]
[374026947,1753187439981,-460.0,0.00017026,2]
[374026948,1753187439992,-463.1547138,0.00017026,2]
[374026949,1753187440002,-460.0,0.00017026,2]
[374026950,1753187440013,-460.0,0.00017026,2]
[374026951,1753187440022,-460.0,0.00017026,2]
[374026952,1753187440032,-525.48641473,0.00017026,2]
[374026953,1753187440043,-475.94306714,0.00017026,2]
[374026954,1753187440054,-460.0,0.00017026,2]
[374026955,1753187440063,-460.0,0.00017026,2]
[374026956,1753187440229,-460.0,0.00017026,2]
[374026957,1753187440240,-460.0,0.00017026,2]
[374026958,1753187440250,-461.36909898,0.00017026,2]
[374026959,1753187440260,-460.0,0.00017026,2]
[374026960,1753187440270,-460.0,0.00017026,2]
[374026961,1753187440279,-460.0,0.00017026,2]
[374026962,1753187440291,-460.0,0.00017026,2]
[374026963,1753187440300,-460.0,0.00017026,2]
[374026964,1753187440310,-460.0,0.00017026,2]
[374026965,1753187440320,-460.0,0.00017026,2]
[374026966,1753187440330,-460.0,0.00017026,2]
[374026968,1753187440339,-462.07952192,0.00017026,2]
[374026969,1753187440349,-460.0,0.00017026,2]
[374026970,1753187440359,-460.0,0.00017026,2]
[374026971,1753187440368,-460.0,0.00017026,2]
[374026972,1753187440378,-460.0,0.00017026,2]
[374026973,1753187440387,-460.0,0.00017026,2]
[374026974,1753187440397,-460.0,0.00017026,2]
[374026975,1753187440407,-168.82454538,0.00017026,2]
[374026976,1753187440417,-460.0,0.00017026,2]
[374026977,1753187440435,-460.0,0.00017026,2]
[374026978,1753187440447,-460.0,0.00017026,2]
[374026979,1753187440458,-460.0,0.00017026,2]
[374026980,1753187440469,-460.0,0.00017026,2]
[374026981,1753187440479,-460.0,0.00017026,2]
[374026982,1753187440490,-460.0,0.00017026,2]
[374026983,1753187440500,-460.0,0.00017026,2]
[374026984,1753187440510,-460.0,0.00017026,2]
[374026985,1753187440520,-460.0,0.00017026,2]
[374026986,1753187440531,-460.0,0.00017026,2]
[374026987,1753187440541,-460.0,0.00017026,2]
[374026989,1753187440550,-460.0,0.00017026,2]
[374026991,1753187440560,-460.0,0.00017026,2]
[374026992,1753187440570,-460.0,0.00017026,2]
[374026993,1753187440580,-460.0,0.00017026,2]
[374026994,1753187440590,-460.0,0.00017026,2]
[374026995,1753187440600,-460.0,0.00017026,2]
[374026996,1753187440610,-460.0,0.00017026,2]
[374026997,1753187440620,-460.0,0.00017026,2]
[374026998,1753187440630,-460.0,0.00017026,2]
[374026999,1753187440643,-460.0,0.00017026,2]
[374027000,1753187440653,-460.0,0.00017026,2]
[374027001,1753187440663,-460.0,0.00017026,2]
[374027002,1753187440675,-460.0,0.00017026,2]
[374027003,1753187440685,-460.0,0.00017026,2]
[374027004,1753187440695,-460.0,0.00017026,2]
[374027005,1753187440705,-460.0,0.00017026,2]
[374027006,1753187440715,-460.0,0.00017026,2]
[374027007,1753187440725,-460.92902991,0.00017026,2]
[374027008,1753187440735,-460.0,0.00017026,2]
[374027009,1753187440745,-460.0,0.00017026,2]
[374027010,1753187440755,-460.0,0.00017026,2]
[374027011,1753187440765,-460.0,0.00017026,2]
[374027012,1753187440775,-460.0,0.00017026,2]
[374027013,1753187440791,-460.0,0.00017026,2]
[374027014,1753187440801,-460.0,0.00017026,2]
[374027015,1753187440811,-460.0,0.00017026,2]
[374027017,1753187440821,-279.83272395,0.00017026,2]
[374027018,1753187440830,-460.0,0.00017026,2]
[374027019,1753187440840,-460.0,0.00017026,2]
[374027020,1753187440850,-460.0,0.00017026,2]
[374027021,1753187440860,-460.0,0.00017026,2]
[374027022,1753187440869,-460.0,0.00017026,2]
[374027023,1753187440879,-460.0,0.00017026,2]
[374027024,1753187440888,-460.0,0.00017026,2]
[374027025,1753187440898,-460.0,0.00017026,2]
[374027026,1753187440908,-460.0,0.00017026,2]
[374027027,1753187440919,-460.0,0.00017026,2]
[374027028,1753187440928,-466.01776952,0.00017026,2]
[374027029,1753187440938,-467.34408297,0.00017026,2]
[374027030,1753187440948,-460.0,0.00017026,2]
[374027031,1753187440958,-460.0,0.00017026,2]